bitfinex/quotes_ETHUSD_20250403
["timestamp","ask_amount","ask_price","bid_price","bid_amount"]
[1743660448308,0.26882633,1824.5,1824.3,4.38508]
[1743660448504,0.26882633,1824.5,1824.4,4.385]
[1743660448710,0.26882633,1824.5,1824.4,5.26748941]
[1743660449510,0.87270685,1824.7,1824.4,5.26748941]
[1743660449711,0.27006801,1824.6,1824.4,4.385]
[1743660449911,0.8044,1824.7,1824.4,4.385]
[1743660450112,0.27018936,1824.6,1824.4,4.385]
[1743660450312,0.8044,1824.7,1824.4,4.385]
[1743660450606,0.27027769,1824.6,1824.4,4.385]
[1743660451000,0.8044,1824.7,1824.4,4.385]
[1743660451201,0.27011635,1824.5,1824.4,4.385]
[1743660451386,0.8044,1824.7,1824.4,4.385]
[1743660451387,0.8044,1824.7,1824.4,5.262008]
[1743660451590,0.27023771,1824.5,1824.4,4.385]
[1743660451790,0.8044,1824.7,1824.4,4.385]
[1743660451991,0.27011635,1824.5,1824.4,4.385]
[1743660452397,0.8044,1824.7,1824.4,4.385]
[1743660452919,0.27039364,1824.6,1824.4,4.385]
[1743660453213,0.8044,1824.7,1824.4,4.385]
[1743660453412,0.27011635,1824.5,1824.4,4.385]
[1743660454109,0.8044,1824.7,1824.4,4.385]
[1743660454314,0.27039364,1824.6,1824.4,4.385]
[1743660454491,0.8044,1824.7,1824.4,4.385]
[1743660454694,0.27039364,1824.6,1824.4,4.385]
[1743660455122,0.8044,1824.7,1824.4,4.385]
[1743660455414,0.27039364,1824.6,1824.4,4.385]
[1743660455782,0.8044,1824.7,1824.4,4.385]
[1743660456017,0.8044,1824.7,1824.3,4.38508]
[1743660456018,0.2707496,1824.5,1824.1,5.18144]
[1743660456187,0.90110685,1824.4,1824.1,4.38564]
[1743660456608,0.26982243,1824.3,1824.1,4.38564]
[1743660456841,0.26982243,1824.3,1824.0,4.93591]
[1743660457129,0.26942365,1824.2,1824.0,5.99342823]
[1743660457281,0.90110685,1824.4,1824.0,5.99342823]
[1743660457481,0.26970104,1824.3,1824.0,5.99342823]
[1743660457702,0.26970104,1824.3,1824.1,4.38571]
[1743660458027,0.90110685,1824.4,1824.1,4.38571]
[1743660458240,0.26942365,1824.2,1824.1,4.38571]
[1743660458533,0.8328,1824.4,1824.2,4.38541]
[1743660459541,3.06830685,1824.5,1824.2,4.38541]
[1743660460736,3.06830685,1824.5,1824.4,0.034531]
[1743660461436,0.06830685,1824.5,1824.4,0.034531]
[1743660462248,0.7977,1824.6,1824.4,0.034531]
[1743660462428,5.213,1824.7,1824.4,4.419531]
[1743660462597,0.06830685,1824.7,1824.4,4.419531]
[1743660463907,0.7847,1824.6,1824.4,0.034531]
[1743660464155,0.06830685,1824.5,1824.4,0.034531]
[1743660466214,5.23796685,1824.5,1824.4,0.034531]
[1743660468462,0.85320685,1824.5,1824.4,0.034531]
[1743660470965,1.12174902,1824.5,1824.4,0.034531]
[1743660472720,6.35715492,1824.5,1824.4,0.034531]
[1743660478152,5.57225492,1824.5,1824.4,0.034531]
[1743660478868,0.33684902,1824.5,1824.4,0.034531]
[1743660480363,0.26854217,1824.5,1824.4,5.242731]
[1743660480565,0.06830685,1824.7,1824.4,5.242731]
[1743660480753,0.2457138,1824.6,1824.4,5.242731]
[1743660480959,0.06830685,1824.7,1824.4,5.242731]
[1743660481123,0.2457138,1824.6,1824.4,5.242731]
[1743660481324,0.06830685,1824.7,1824.4,6.2055261]
[1743660481521,0.2457138,1824.6,1824.4,6.2055261]
[1743660481726,4.45269685,1824.7,1824.4,0.034531]
[1743660481925,4.38476,1824.5,1824.4,0.034531]
[1743660482126,7.69850335,1824.5,1824.4,0.034531]
[1743660488568,3.31374335,1824.5,1824.4,0.034531]
[1743660489971,0.2454365,1824.5,1824.4,5.245531]
[1743660490167,5.212,1824.8,1824.4,5.7700841]
[1743660490339,0.31265912,1824.7,1824.4,5.7700841]
[1743660491459,0.31265912,1824.7,1824.5,4.38476]
[1743660491766,0.24435227,1824.7,1824.5,4.38476]
[1743660493367,0.24435227,1824.7,1824.5,5.40024441]
[1743660496372,0.24435227,1824.7,1824.6,5.72542]
[1743660496671,5.27930685,1825.1,1824.8,4.384]
[1743660497066,0.2479356,1825.0,1824.8,4.384]
[1743660497255,0.2479356,1825.0,1824.8,8.768]
[1743660497456,0.2479356,1825.0,1824.8,4.384]
[1743660497856,0.2479356,1825.0,1824.8,8.768]
[1743660498407,0.2479356,1825.0,1824.8,4.384]
[1743660500366,0.2479356,1825.0,1824.8,4.82787977]
[1743660502281,0.06830685,1825.2,1824.9,6.17208498]
[1743660502692,0.24950655,1825.1,1824.8,9.21167977]
[1743660504103,0.24950655,1825.1,1824.8,9.21168977]
[1743660506112,4.45186685,1825.0,1824.6,4.93436]
[1743660506274,4.45186685,1825.0,1824.7,4.38425]
[1743660506275,0.06830685,1825.0,1824.7,4.38425]
[1743660506478,0.2489521,1824.9,1824.8,5.72624]
[1743660507216,5.27830685,1825.2,1824.9,4.38373]
[1743660508009,5.27830685,1825.2,1825.0,4.38353]
[1743660508211,0.82140685,1825.3,1825.0,4.38353]
[1743660508910,0.82140685,1825.3,1824.9,4.38379]
[1743660509215,5.20424685,1825.3,1824.9,8.76758]
[1743660509403,0.82140685,1825.3,1824.9,8.76758]
[1743660510610,0.82140685,1825.3,1825.0,4.38354]
[1743660510810,0.06830685,1825.4,1825.2,4.38308]
[1743660511011,0.06830685,1825.4,1825.1,5.15777]
[1743660512221,0.06830685,1825.4,1825.0,4.93354]
[1743660513919,4.45098685,1825.4,1825.0,0.55]
[1743660514419,4.45098685,1825.4,1825.0,4.93352]
[1743660515426,5.93610153,1825.4,1825.0,4.93352]
[1743660515719,0.8179,1825.3,1825.0,4.93352]
[1743660515923,1.06646122,1825.3,1825.0,4.93352]
[1743660516526,0.24856122,1825.3,1825.0,4.93352]
[1743660516825,0.85930685,1825.4,1825.0,4.93352]
[1743660517024,0.24834474,1825.2,1825.0,4.93352]
[1743660517233,5.24191685,1825.4,1825.0,4.93352]
[1743660517434,0.24806756,1825.1,1825.0,4.93352]
[1743660517636,0.24806756,1825.1,1825.0,5.945428]
[1743660517824,0.85930685,1825.4,1825.1,4.3833]
[1743660519737,5.24194685,1825.4,1825.0,5.945428]
[1743660519918,0.85930685,1825.4,1825.0,10.328888]
[1743660520237,0.85930685,1825.4,1825.1,4.38331]
[1743660522636,0.85930685,1825.4,1825.0,5.945368]
[1743660523227,4.38284,1825.3,1825.0,0.55]
[1743660523536,0.06830685,1825.2,1825.0,0.55]
[1743660523741,0.06830685,1825.2,1824.9,4.38376]
[1743660524816,0.89430685,1825.2,1824.9,4.38376]
[1743660527185,5.27753685,1825.2,1824.8,4.3838]
[1743660527387,0.52775368,1825.1,1824.8,4.3838]
[1743660527545,0.06830685,1825.0,1824.8,4.3838]
[1743660527876,5.27630685,1825.1,1824.8,4.3838]
[1743660528777,5.27630685,1825.1,1824.7,4.93424]
[1743660528982,5.27630685,1825.1,1824.5,4.38471]
[1743660528983,4.3839,1824.9,1824.5,4.38471]
[1743660529276,0.06830685,1824.8,1824.5,4.38471]
[1743660530773,0.246034,1824.7,1824.5,4.38471]
[1743660531592,0.246034,1824.7,1824.5,5.3469671]
[1743660531776,0.06830685,1824.9,1824.5,5.3469671]
[1743660531981,0.24631137,1824.8,1824.5,5.3469671]
[1743660532182,0.06830685,1824.9,1824.5,5.3469671]
[1743660532498,0.24631137,1824.8,1824.5,5.3469671]
[1743660532796,0.06830685,1824.9,1824.5,5.3469671]
[1743660533092,0.24631137,1824.8,1824.5,5.3469671]
[1743660533275,0.24631137,1824.8,1824.5,5.3468471]
[1743660533481,5.208,1824.9,1824.7,4.38414]
[1743660534297,5.208,1824.9,1824.7,8.76829]
[1743660534602,5.208,1824.9,1824.7,4.38414]
[1743660540672,5.208,1824.9,1824.6,6.26576671]
[1743660540867,5.208,1824.9,1824.6,4.93447]
[1743660541611,5.21116685,1825.0,1824.6,4.93447]
[1743660545300,5.21116685,1825.0,1824.5,5.18774]
[1743660545598,4.38382,1824.9,1824.5,9.5999]
[1743660545798,0.31330127,1824.8,1824.5,9.5999]
[1743660546005,0.31330127,1824.8,1824.5,10.6183431]
[1743660546797,0.31330127,1824.8,1824.6,4.93452]
[1743660546994,0.24499442,1824.8,1824.7,5.19258464]
[1743660547218,6.06100685,1825.2,1824.8,4.93382]
[1743660547511,0.24612519,1825.1,1824.9,5.13729]
[1743660547906,0.24612519,1825.1,1824.9,9.52091]
[1743660548203,0.24612519,1825.1,1824.9,9.52082]
[1743660548370,0.24612519,1825.1,1824.9,5.13712]
[1743660549619,0.24612519,1825.1,1824.9,4.38362]
[1743660550125,0.24612519,1825.1,1824.8,5.73639]
[1743660550284,0.24612519,1825.1,1824.8,6.748435]
[1743660550621,0.24612519,1825.1,1824.8,0.55]
[1743660551421,0.24612519,1825.1,1824.8,4.93397]
[1743660554005,0.24612519,1825.1,1824.9,5.20217]
[1743660556218,0.24612519,1825.1,1824.9,4.38357]
[1743660556434,1.07882519,1825.1,1824.8,4.38399]
[1743660556722,0.06830685,1825.0,1824.7,4.93412]
[1743660557021,0.24643455,1824.9,1824.7,4.93412]
[1743660558393,0.24643455,1824.9,1824.6,5.20162]
[1743660558591,0.24643455,1824.9,1824.6,6.31710231]
[1743660559324,0.24643455,1824.9,1824.6,5.20162]
[1743660560818,0.24643455,1824.9,1824.7,4.38427]
[1743660561024,0.24643455,1824.9,1824.8,4.98884007]
[1743660561325,5.207,1825.2,1824.9,4.38377]
[1743660562825,5.207,1825.2,1824.8,4.38404]
[1743660563025,0.58900685,1825.1,1824.8,4.38404]
[1743660563325,0.58900685,1825.1,1824.7,4.38422]
[1743660563326,0.8249,1825.0,1824.7,4.38422]
[1743660563519,0.06830685,1824.9,1824.7,4.38422]
[1743660565033,0.06830685,1824.9,1824.5,5.76114]
[1743660565229,4.38474,1824.6,1824.4,0.034531]
[1743660565416,1.28338085,1824.5,1824.4,0.034531]
[1743660566508,8.66814085,1824.5,1824.4,0.034531]
[1743660568323,4.28338085,1824.5,1824.4,0.034531]
[1743660568636,8.66814085,1824.5,1824.4,0.034531]
[1743660575840,8.91012617,1824.5,1824.4,0.034531]
[1743660579627,4.52536617,1824.5,1824.4,0.034531]
[1743660579841,4.08689217,1824.5,1824.4,0.034531]
[1743660580015,3.31029217,1824.5,1824.4,0.034531]
[1743660581148,7.69505217,1824.5,1824.4,0.034531]
[1743660581643,8.46445217,1824.5,1824.4,0.034531]
[1743660590059,3.31029217,1824.5,1824.4,0.034531]
[1743660591380,7.69505217,1824.5,1824.4,0.034531]
[1743660591581,3.31029217,1824.5,1824.4,0.034531]
[1743660592886,7.69505217,1824.5,1824.4,0.034531]
[1743660593054,8.94488094,1824.5,1824.4,0.034531]
[1743660596902,9.72658094,1824.5,1824.4,0.034531]
[1743660603279,8.94488094,1824.5,1824.4,0.034531]
[1743660605318,11.55191661,1824.5,1824.4,0.034531]
[1743660605614,13.26124543,1824.5,1824.4,0.034531]
[1743660605907,13.82954707,1824.5,1824.4,0.034531]
[1743660606302,14.40667983,1824.5,1824.4,0.034531]
[1743660607381,13.83837819,1824.5,1824.4,1e-06]
[1743660607678,4.38679,1823.7,1823.4,0.8301]
[1743660607890,0.30533623,1823.6,1823.4,0.8301]
[1743660610312,0.23702938,1823.6,1823.4,0.8301]
[1743660610512,0.23702938,1823.6,1823.4,5.21738]
[1743660610818,5.27530685,1823.7,1823.4,5.21738]
[1743660611109,0.2362049,1823.5,1823.4,5.21738]
[1743660611410,5.27530685,1823.7,1823.4,0.8301]
[1743660611614,0.2362049,1823.5,1823.4,0.8301]
[1743660612219,9.66200685,1823.7,1823.4,0.8301]
[1743660612410,0.2362049,1823.5,1823.4,0.8301]
[1743660612821,5.27530685,1823.7,1823.4,0.8301]
[1743660612990,0.2362049,1823.5,1823.4,0.8301]
[1743660613484,9.66202685,1823.7,1823.4,0.8301]
[1743660613682,0.23648262,1823.6,1823.4,0.8301]
[1743660614095,5.27530685,1823.7,1823.4,5.21739]
[1743660614296,0.23648262,1823.6,1823.4,5.21739]
[1743660614498,5.27530685,1823.7,1823.4,0.8301]
[1743660614815,0.23648262,1823.6,1823.4,0.8301]
[1743660615195,9.66211685,1823.7,1823.4,0.8301]
[1743660615413,0.23602261,1823.5,1823.4,0.8301]
[1743660615614,9.66211685,1823.7,1823.4,0.8301]
[1743660616116,0.23439293,1823.6,1823.4,0.8301]
[1743660616486,5.27530685,1823.7,1823.4,0.8301]
[1743660616686,0.23439293,1823.6,1823.4,0.8301]
[1743660616904,5.27530685,1823.7,1823.4,0.8301]
[1743660617111,0.23439293,1823.6,1823.4,0.8301]
[1743660617523,5.27530685,1823.7,1823.4,0.8301]
[1743660617693,0.2341152,1823.5,1823.4,0.8301]
[1743660618022,5.27530685,1823.7,1823.4,0.8301]
[1743660618320,0.23439293,1823.6,1823.4,0.8301]
[1743660618825,7.38614,1824.0,1823.5,5.20761]
[1743660619000,5.207,1823.9,1823.7,4.38658]
[1743660619203,5.207,1823.9,1823.8,0.8206]
[1743660619611,5.207,1823.9,1823.6,5.14483]
[1743660620125,5.207,1823.9,1823.7,4.38667]
[1743660620887,5.207,1823.9,1823.8,0.814]
[1743660621520,5.207,1823.9,1823.8,5.20044]
[1743660622591,0.06830685,1824.1,1823.8,6.159133]
[1743660622796,0.06830685,1824.1,1824.0,0.8266]
[1743660622797,5.207,1824.1,1824.0,0.8266]
[1743660623316,5.27530685,1824.3,1824.0,0.8266]
[1743660624225,9.66055685,1824.3,1824.0,0.8266]
[1743660624426,4.38551,1824.2,1823.8,0.55]
[1743660624626,4.45403685,1824.1,1823.8,0.8065]
[1743660626029,0.06830685,1824.2,1823.8,5.19286]
[1743660626333,5.27530685,1824.3,1824.0,0.7891]
[1743660626909,5.27530685,1824.3,1824.0,5.17502]
[1743660630733,5.27530685,1824.3,1824.1,4.38552]
[1743660630924,6.10283753,1824.3,1824.0,5.17502]
[1743660632251,10.48809753,1824.3,1824.0,0.7891]
[1743660632611,0.8214,1824.2,1823.9,0.55]
[1743660632953,3.8214,1824.2,1823.8,5.16708]
[1743660633138,0.06830685,1824.1,1823.8,5.16708]
[1743660633724,0.06830685,1824.1,1823.4,8.02805759]
[1743660633725,0.8105,1823.9,1823.6,0.7511]
[1743660633946,0.06830685,1823.8,1823.5,4.387]
[1743660634258,5.26507685,1823.9,1823.5,4.387]
[1743660634835,0.06830685,1823.9,1823.6,4.38692]
[1743660635058,5.205,1823.9,1823.6,4.38692]
[1743660635262,5.27330685,1823.9,1823.6,4.38692]
[1743660635439,6.53925154,1823.9,1823.6,4.38692]
[1743660635611,6.53925154,1823.9,1823.7,0.8096]
[1743660635935,0.3762555,1823.8,1823.7,0.8096]
[1743660636142,5.205,1823.9,1823.7,5.19628]
[1743660636344,0.37475949,1823.8,1823.7,5.19628]
[1743660636541,5.205,1823.9,1823.7,5.19628]
[1743660636763,0.37475949,1823.8,1823.7,5.19628]
[1743660636942,5.205,1823.9,1823.7,5.19628]
[1743660637131,0.3748717,1823.8,1823.7,0.8096]
[1743660637332,5.205,1823.9,1823.7,0.8096]
[1743660637533,0.3748717,1823.8,1823.7,0.8096]
[1743660637966,5.205,1823.9,1823.7,0.8096]
[1743660638116,0.37494651,1823.8,1823.7,0.8096]
[1743660638444,5.205,1823.9,1823.7,0.8096]
[1743660638646,0.37488742,1823.8,1823.7,0.8096]
[1743660639030,5.205,1823.9,1823.7,0.8096]
[1743660639230,0.37488742,1823.8,1823.7,0.8096]
[1743660639463,5.205,1823.9,1823.7,0.8096]
[1743660639632,0.37488742,1823.8,1823.7,0.8096]
[1743660639833,5.205,1823.9,1823.7,0.8096]
[1743660640021,0.37494651,1823.8,1823.7,0.8096]
[1743660640231,5.205,1823.9,1823.7,0.8096]
[1743660640232,6.12,1824.0,1823.8,4.38634]
[1743660640918,7.2525,1824.0,1823.8,4.38634]
[1743660642653,7.2525,1824.0,1823.7,5.19609]
[1743660642947,6.12,1824.0,1823.8,4.38643]
[1743660643159,6.12,1824.0,1823.9,5.7045]
[1743660643584,6.12,1824.0,1823.9,4.9362]
[1743660643762,6.12,1824.0,1823.7,0.7683]
[1743660644074,6.18830685,1824.0,1823.7,0.7683]
[1743660644378,12.44759254,1824.0,1823.7,0.7683]
[1743660644670,12.37928569,1824.0,1823.7,0.7683]
[1743660644974,0.06830685,1823.9,1823.7,0.7683]
[1743660646074,12.37928569,1824.0,1823.7,0.7683]
[1743660646271,0.06830685,1823.9,1823.7,0.7683]
[1743660646476,1.3130661,1823.9,1823.6,4.93669]
[1743660647296,5.6993761,1823.9,1823.4,5.21929]
[1743660647478,5.15479,1823.8,1823.3,5.21974]
[1743660647634,0.06830685,1823.7,1823.3,5.21974]
[1743660648449,4.45499685,1823.7,1823.3,5.21974]
[1743660649682,5.41597553,1823.7,1823.3,5.21974]
[1743660650739,0.37384547,1823.6,1823.3,4.38764]
[1743660650978,0.7951,1823.5,1823.3,0.55]
[1743660651190,1.16867543,1823.5,1823.3,0.55]
[1743660652551,6.37367543,1823.5,1823.1,0.8634]
[1743660653051,10.82916228,1823.5,1823.1,5.25151]
[1743660653249,10.76085543,1823.5,1823.1,5.25151]
[1743660654887,10.76085543,1823.5,1823.1,4.48811]
[1743660655088,12.27565197,1823.5,1823.1,4.48811]
[1743660656598,7.88847197,1823.5,1823.1,4.54282407]
[1743660656891,6.44198228,1823.5,1823.2,4.38777]
[1743660657595,6.37367543,1823.5,1823.2,4.38777]
[1743660658497,6.44198228,1823.5,1823.2,4.38777]
[1743660659065,6.37367543,1823.5,1823.2,4.38777]
[1743660659402,6.44198228,1823.5,1823.2,4.38777]
[1743660659601,7.52489151,1823.5,1823.2,4.38777]
[1743660660409,7.52489151,1823.5,1823.1,4.48798]
[1743660660615,7.52489151,1823.5,1823.1,8.87599]
[1743660660968,7.52489151,1823.5,1823.1,4.48798]
[1743660661266,11.91209151,1823.5,1823.1,4.48798]
[1743660661609,1.19120915,1823.4,1823.1,4.48798]
[1743660661810,5.647026,1823.4,1823.1,0.1]
[1743660662110,5.56586779,1823.3,1823.1,0.1]
[1743660662412,5.26348685,1823.2,1823.1,0.1]
[1743660662594,6.26569231,1823.2,1823.1,0.1]
[1743660662761,6.63533022,1823.2,1823.1,0.1]
[1743660663573,9.63533022,1823.2,1823.1,0.1]
[1743660663768,12.74446985,1823.2,1823.1,0.1]
[1743660664088,19.77337823,1823.2,1823.1,0.1]
[1743660664590,19.77337823,1823.2,1822.1,5.24342]
[1743660664591,0.756,1822.4,1822.1,0.1]
[1743660664802,6.02930685,1822.4,1822.1,0.1]
[1743660665090,0.36508458,1822.3,1822.1,0.1]
[1743660665389,6.02930685,1822.4,1822.1,4.49042]
[1743660665624,0.36487326,1822.2,1822.1,4.49042]
[1743660665908,6.02930685,1822.4,1822.1,4.49042]
[1743660665909,5.961,1822.4,1822.1,4.49042]
[1743660666520,0.36514374,1822.3,1822.1,4.49042]
[1743660666721,5.961,1822.4,1822.1,4.49042]
[1743660667013,0.36514374,1822.3,1822.1,4.49042]
[1743660667422,5.961,1822.4,1822.1,4.49042]
[1743660667576,0.36487326,1822.2,1822.1,5.04042]
[1743660667777,5.961,1822.4,1822.1,5.04042]
[1743660668005,0.36502541,1822.3,1822.1,5.04042]
[1743660668373,5.961,1822.4,1822.1,5.04042]
[1743660668604,0.36502541,1822.3,1822.1,5.04042]
[1743660669099,5.961,1822.4,1822.1,5.04042]
[1743660669299,7.00289569,1822.4,1822.1,0.65]
[1743660669674,0.36502541,1822.3,1822.1,0.65]
[1743660669873,7.07120254,1822.4,1822.1,0.65]
[1743660670184,0.36508458,1822.3,1822.1,0.1]
[1743660670383,7.07120254,1822.4,1822.1,0.1]
[1743660670698,0.36484792,1822.3,1822.1,4.49042]
[1743660671005,7.07120254,1822.4,1822.1,0.1]
[1743660671205,0.36463659,1822.2,1822.1,0.1]
[1743660671405,7.07120254,1822.4,1822.1,0.1]
[1743660671584,0.36469576,1822.2,1822.1,0.1]
[1743660671784,7.07120254,1822.4,1822.1,0.1]
[1743660671985,0.36484792,1822.3,1822.1,0.1]
[1743660672294,7.07120254,1822.4,1822.1,0.1]
[1743660672473,0.36469576,1822.2,1822.1,0.1]
[1743660672673,7.07120254,1822.4,1822.1,0.1]
[1743660672889,0.36469576,1822.2,1822.1,0.1]
[1743660673093,7.07120254,1822.4,1822.1,0.1]
[1743660673291,0.70712025,1822.3,1822.1,0.1]
[1743660673695,0.36475493,1822.2,1822.1,0.1]
[1743660676015,1.19455493,1822.2,1822.1,0.1]
[1743660678927,5.58484493,1822.2,1822.1,0.1]
[1743660681029,1.19455493,1822.2,1822.1,0.1]
[1743660681239,0.36475493,1822.2,1822.1,0.8554]
[1743660681390,0.36475493,1822.2,1822.1,9.43396463]
[1743660681590,11.327,1822.6,1822.3,8.77998]
[1743660681889,0.3577075,1822.5,1822.3,8.77998]
[1743660682120,0.3577075,1822.5,1822.3,4.38999]
[1743660682483,0.3577075,1822.5,1822.3,8.77998]
[1743660682691,0.3577075,1822.5,1822.3,4.38999]
[1743660684123,0.3577075,1822.5,1822.2,4.94026]
[1743660684318,5.9840851,1822.5,1822.2,0.55]
[1743660684644,0.3577075,1822.5,1822.2,4.94022]
[1743660685013,0.3577075,1822.5,1822.2,4.995091]
[1743660685444,0.3577075,1822.5,1822.3,4.38991]
[1743660686810,0.3577075,1822.5,1822.3,8.7798]
[1743660687593,0.3577075,1822.5,1822.4,5.17411]
[1743660692237,0.3577075,1822.5,1822.4,0.7843]
[1743660692601,0.3577075,1822.5,1822.3,4.38989]
[1743660694036,0.3577075,1822.5,1822.2,5.74509]
[1743660694404,0.3577075,1822.5,1822.2,10.13538]
[1743660694905,0.3577075,1822.5,1822.2,5.74509]
[1743660695105,0.3577075,1822.5,1822.2,4.94029]
[1743660697355,6.5009361,1822.5,1822.2,0.55]
[1743660697565,6.5009361,1822.5,1822.1,0.1]
[1743660700052,6.5009361,1822.5,1822.1,4.49047]
[1743660701536,2.04291925,1822.5,1822.1,0.1]
[1743660701736,0.3577075,1822.5,1822.3,4.39002]
[1743660701937,0.3577075,1822.5,1822.2,5.16311]
[1743660702138,0.3577075,1822.5,1822.2,5.21798221]
[1743660702342,0.3577075,1822.5,1822.2,5.16311]
[1743660702538,0.3577075,1822.5,1822.2,9.5533]
[1743660702743,0.3577075,1822.5,1822.2,5.16311]
[1743660703045,5.5637075,1822.5,1822.2,9.5533]
[1743660703357,5.5637075,1822.5,1822.2,5.16311]
[1743660704155,5.5637075,1822.5,1822.2,9.5533]
[1743660705367,0.3577075,1822.5,1822.3,4.99487349]
[1743660705672,0.3577075,1822.5,1822.4,4.38981]
[1743660706353,0.3577075,1822.5,1822.4,4.93981]
[1743660707173,0.3577075,1822.5,1822.4,0.55]
[1743660708714,0.3577075,1822.5,1822.4,0.60486697]
[1743660708862,0.3577075,1822.5,1822.4,4.93981]
[1743660709388,0.3577075,1822.5,1822.4,0.55]
[1743660709886,5.27430685,1822.7,1822.4,0.55]
[1743660710091,0.35894008,1822.5,1822.4,0.55]
[1743660710273,0.52743069,1822.6,1822.4,0.55]
[1743660710449,0.35894008,1822.5,1822.4,0.55]
[1743660711570,0.35894008,1822.5,1822.2,5.16329]
[1743660712512,0.35894008,1822.5,1822.2,5.21816255]
[1743660712696,0.35894008,1822.5,1822.2,5.16329]
[1743660713282,0.97193284,1822.5,1822.2,4.39029]
[1743660713648,5.36150284,1822.5,1822.1,0.1]
[1743660713875,5.27707685,1822.4,1822.1,0.1]
[1743660714250,0.36040814,1822.3,1822.1,0.1]
[1743660714470,0.92415664,1822.3,1822.1,0.1]
[1743660714676,0.5637485,1822.3,1822.1,0.1]
[1743660714985,0.35972369,1822.2,1822.1,0.1]
[1743660715152,0.5637485,1822.3,1822.1,0.1]
[1743660715354,0.35972369,1822.2,1822.1,0.1]
[1743660717383,0.97257091,1822.2,1822.1,0.1]
[1743660718387,1.74267091,1822.2,1822.1,0.1]
[1743660718686,12.31470739,1822.2,1822.1,0.1]
[1743660718902,12.24640054,1822.2,1822.1,0.1]
[1743660720587,18.36640054,1822.2,1822.1,0.1]
[1743660724606,18.78582292,1822.2,1822.1,0.1]
[1743660728567,22.46756411,1822.2,1822.1,1e-05]
[1743660728773,23.04469687,1822.2,1822.1,1e-05]
[1743660729387,19.93125724,1822.2,1822.1,1e-05]
[1743660729724,23.04469687,1822.2,1822.1,1e-05]
[1743660729902,19.93125724,1822.2,1822.1,1e-05]
[1743660730619,23.04469687,1822.2,1822.1,1e-05]
[1743660730913,0.7695,1821.9,1821.1,0.8814]
[1743660731076,4.39224,1821.4,1821.1,0.8814]
[1743660731275,0.06830685,1821.3,1821.1,0.8814]
[1743660731488,0.42016698,1821.3,1821.1,0.8814]
[1743660731680,0.06830685,1821.3,1821.1,0.8814]
[1743660731873,0.35158937,1821.2,1821.1,1.4314]
[1743660732214,0.32499863,1821.2,1821.1,6.71813996]
[1743660732412,6.11999,1821.8,1821.5,0.784]
[1743660732709,0.29803166,1821.7,1821.5,0.784]
[1743660735674,0.29803166,1821.7,1821.5,0.83889336]
[1743660735882,0.29803166,1821.7,1821.6,4.39174]
[1743660736083,0.29803166,1821.7,1821.5,9.56772]
[1743660736422,0.29803166,1821.7,1821.6,1.762572]
[1743660738687,0.29803166,1821.7,1821.6,6.704312]
[1743660738888,0.29803166,1821.7,1821.6,6.75919917]
[1743660739229,5.206,1822.0,1821.7,5.70984]
[1743660739645,0.29833253,1821.9,1821.7,5.70984]
[1743660739930,0.29833253,1821.9,1821.7,6.8156752]
[1743660741639,0.29833253,1821.9,1821.8,5.21726]
[1743660743102,3.0,1822.1,1821.9,0.55]
[1743660745414,3.0,1822.1,1821.8,0.826]
[1743660745415,7.45893685,1822.1,1821.8,0.826]
[1743660746495,3.0,1822.1,1821.8,0.826]
[1743660746726,3.0,1822.1,1821.8,1.79236155]
[1743660747034,3.06830685,1822.1,1821.8,1.79236155]
[1743660748623,3.0,1822.1,1821.8,6.18357155]
[1743660752152,6.11999,1822.2,1821.9,0.55]
[1743660752434,6.11999,1822.2,1822.0,0.7562]
[1743660753329,6.11999,1822.2,1822.0,1.33140604]
[1743660754520,6.11999,1822.2,1822.0,5.72211604]
[1743660754914,5.204,1822.3,1822.0,5.72211604]
[1743660755933,0.30099131,1822.2,1822.0,5.72198604]
[1743660756101,0.30099131,1822.2,1822.1,4.39053]
[1743660756704,0.30099131,1822.2,1822.1,5.95726941]
[1743660757034,14.32399,1822.5,1822.2,0.55]
[1743660757233,0.30153233,1822.4,1822.2,4.94025]
[1743660757547,0.30153233,1822.4,1822.3,0.794]
[1743660757733,0.30153233,1822.4,1822.3,1.367425]
[1743660758034,0.30153233,1822.4,1822.3,5.757475]
[1743660758407,0.30153233,1822.4,1822.3,6.307475]
[1743660758609,6.11999,1823.1,1822.7,5.20449]
[1743660758812,0.28306621,1823.0,1822.8,4.44349695]
[1743660759015,4.45618685,1823.2,1822.8,0.05485695]
[1743660759218,5.45746491,1823.1,1822.6,4.38919]
[1743660759407,4.13751176,1823.1,1822.7,4.827839]
[1743660759743,5.52567176,1823.1,1822.7,4.827839]
[1743660760839,5.52567176,1823.1,1822.5,5.20484]
[1743660760840,5.203,1823.0,1822.5,5.20484]
[1743660761011,0.35187147,1822.9,1822.6,4.93933]
[1743660767747,0.7901,1822.8,1822.4,4.38977]
[1743660767910,0.06830685,1822.7,1822.4,4.38977]
[1743660768110,0.35133106,1822.7,1822.4,4.38977]
[1743660769525,0.35133106,1822.7,1822.3,4.963325]
[1743660769725,0.35133106,1822.7,1822.3,9.353255]
[1743660770166,0.35133106,1822.7,1822.3,4.963325]
[1743660771259,0.35133106,1822.7,1822.3,5.01816518]
[1743660772028,0.35133106,1822.7,1822.3,4.963295]
[1743660772941,0.35133106,1822.7,1822.4,4.3897]
[1743660775762,3.35133106,1822.7,1822.3,4.963295]
[1743660775943,3.35133106,1822.7,1822.3,4.38987]
[1743660776143,7.74049106,1822.7,1822.3,4.38987]
[1743660780874,7.74049106,1822.7,1822.2,4.39029]
[1743660781063,0.7694,1822.6,1822.2,4.964669]
[1743660781373,0.28492776,1822.5,1822.2,4.964669]
[1743660784066,0.28492776,1822.5,1822.2,4.964479]
[1743660784377,0.28492776,1822.5,1822.3,4.44482011]
[1743660788283,0.28492776,1822.5,1822.3,9.55802]
[1743660788483,3.06830685,1822.7,1822.4,0.955802]
[1743660788667,0.28192631,1822.6,1822.3,9.61289009]